Cogmind - Beta 11.1 @@@ ROGUE MODE // 2022.06.24 @ 12:06:07 Player: SouppuoS Result: Self-destructed Performance ------------- Evolutions (1) 500 Regions Visited (2) 400 Robots Destroyed (14) 70 Value Destroyed (340) 340 Prototype IDs (0) 0 Alien Tech Used (0) 0 Bonus (0) 0 TOTAL SCORE: 1310 Bonus ------- None Cogmind --------- Core Integrity 248/400 Matter 300/300 Energy 150/150 System Corruption 0% Temperature Cool (23) Movement Core (450) Ox8 Location -9/Materials Parts ------- > --- POWER (2) -------- Light Ion Engine Light Ion Engine > --- PROPULSION (2) --- (None) > --- UTILITY (3) ------ Heat Sink Large Storage Unit > --- WEAPON (2) ------- (None) > --- INVENTORY (15) --- Light Treads Light Treads Wheel Wheel Compact Wheel Flight Unit Heat Sink Large Storage Unit Large Matter Pod (5) Terrain Scanner Seismic Detector High-powered Tractor Beam Beam Cannon Light Cannon Plasma Cutter Peak State ------------ > --- POWER ------------ Ion Engine Light Ion Engine > --- PROPULSION ------- Light Treads Light Treads > --- UTILITY ---------- Large Storage Unit Sensor Array Seismic Detector > --- WEAPON ----------- Mining Laser Mining Laser > --- INVENTORY -------- Light Ion Engine Aluminum Leg Wheel Compact Wheel Heat Sink Medium Storage Unit Large Storage Unit Large Matter Pod Medium Laser Beam Cannon Light Cannon Mining Laser [Rating: 10] Favorites ----------- Power Ion Engine Engine Ion Engine Propulsion Aluminum Leg Treads Light Treads Leg Aluminum Leg Utility Large Storage Unit Device Sensor Array Storage Large Storage Unit Weapon Mining Laser Energy Gun Small Laser Ballistic Cannon Light Cannon Special Weapon Mining Laser Build | -11 -10 -9 ------- Run | Scr Mat Mat Slots Evolved 2 | . . 2 Power 1 | . . 1 Propulsion . | . . . Utility 1 | . . 1 Weapon . | . . . Parts Attached 30 | 6 12 12 Power 6 | 1 1 4 Engine 6 | 1 1 4 Core . | . . . Reactor . | . . . Propulsion 8 | 2 2 4 Treads 2 | . . 2 Leg 6 | 2 2 2 Wheel . | . . . Hover . | . . . Flight . | . . . Utility 7 | 1 4 2 Device 3 | . 1 2 Storage 4 | 1 3 . Processor . | . . . Hackware . | . . . Protection . | . . . Artifact . | . . . Weapon 9 | 2 5 2 Energy Gun 3 | 2 . 1 Energy Cannon . | . . . Ballistic Gun . | . . . Ballistic Cannon 1 | . 1 . Launcher . | . . . Special Weapon 5 | . 4 1 Impact Weapon . | . . . Slashing Weapon . | . . . Piercing Weapon . | . . . Special Melee Weapon . | . . . Unidentified Prototypes . | . . . Parts Lost 12 | . 2 10 Power 3 | . . 3 Propulsion 4 | . 2 2 Utility 1 | . . 1 Weapon 4 | . . 4 Highest Loss Streak 5 | . 1 5 To Critical Strikes . | . . . Average Slot Usage (%) 92 | . 92 94 Engine 15 | . 14 19 Treads 3 | . . 14 Leg 22 | . 27 5 Device 11 | . 8 20 Storage 13 | . 14 11 Energy Gun 5 | . 6 5 Ballistic Cannon 2 | . 3 . Special Weapon 17 | . 18 15 Naked Turns . | . . . Heaviest Build 32 | 10 30 32 Greatest Support 40 | 3 20 40 Greatest Overweight (x) 3 | 3 2 2 Average Overweight (x) . | 1 . . Largest Inventory Capacity 15 | 8 15 15 Average Capacity 14 | 6 14 15 Most Carried 15 | 6 15 15 Average Carried 12 | 4 13 13 Final Capacity 15 | 8 15 15 Final Carried 15 | 6 15 15 Class Distribution -------------------- 94% | Mutant 5% | Scavenger-Mutant Dominant Class ---------------- Mutant | -10/Materials Mutant | -9/Materials Resources | -11 -10 -9 ----------- Run | Scr Mat Mat Matter Collected 497 | 260 91 146 Remotely . | . . . Salvage Created 217 | . 87 130 Parts 24 | . 12 12 Haulers Intercepted . | . . . Recyclers Shooed . | . . . Parts Field Recycled . | . . . Retrieved Matter . | . . . Parts Self-Destructed . | . . . Prevented . | . . . Kills | -11 -10 -9 ------- Run | Scr Mat Mat Combat Hostiles Destroyed 13 | . 7 6 Guns 3 | . 1 2 Cannons 9 | . 6 3 Classes Destroyed 3 | . 2 1 Builder 1 | . . 1 Swarmer 5 | . 3 2 Grunt 8 | . 4 4 Best Kill Streak 5 | . 3 5 Combat Bots Only 3 | . 3 2 Max Kills in Single Turn 1 | . 1 1 Gunslinging . | . . . Exploded . | . . . Melee . | . . . Uniques/NPCs Destroyed . | . . . Combat | -11 -10 -9 -------- Run | Scr Mat Mat Damage Taken 1368 | . 458 910 Core 232 | . 80 152 Absorbed by Shields . | . . . Core Remaining (%) 84 | 100 68 . Volleys Fired 49 | . 18 31 Largest 2 | . 2 2 Hottest 200 | . 200 200 Shots Fired 72 | . 27 45 Gun 32 | . 7 25 Cannon 13 | . 13 . Launcher . | . . . Special 27 | . 7 20 Kinetic 13 | . 13 . Thermal 59 | . 14 45 Explosive . | . . . Electromagnetic . | . . . Robot Hit Streak 8 | . 3 8 Robot Miss Streak 4 | . 4 3 Penetration Max . | . . . Secondary Targets . | . . . Shots Hit Robots 37 | . 12 25 Core Hits 18 | . 7 11 Critical Kills . | . . . Critical Parts Destroyed . | . . . Critical Strikes 3 | . 1 2 Burn 2 | . . 2 Blast 1 | . 1 . Melee Attacks . | . . . Impact . | . . . Slashing . | . . . Piercing . | . . . Sneak Attacks . | . . . Combat Hostiles . | . . . Follow-up Attacks . | . . . Damage Inflicted 647 | . 244 403 Guns 268 | . 33 235 Cannons 139 | . 139 . Explosions . | . . . Melee . | . . . Ramming . | . . . Kinetic 139 | . 139 . Thermal 508 | . 105 403 Explosive . | . . . Electromagnetic . | . . . Impact . | . . . Slashing . | . . . Piercing . | . . . Highest Corruption . | . . . Average Corruption . | . . . Corruption Purged . | . . . Corruption Blocked . | . . . Overload Shots . | . . . Overflow Damage 8 | . . 8 Projectiles 8 | . . 8 Explosions . | . . . Melee . | . . . Knockbacks . | . . . Impact . | . . . Kinetic . | . . . Secondary . | . . . Self-Inflicted Damage . | . . . Shots . | . . . Rammed . | . . . Targets Rammed . | . . . Kicked . | . . . Crushed . | . . . Highest Temperature 447 | . 188 447 Average Temperature 138 | . 64 171 Received Heat Transfer 555 | . 141 414 Effects 4 | . . 4 Shutdowns 2 | . . 2 Energy Bleed 2 | . . 2 Siege Activations . | . . . Robots Corrupted . | . . . Combat Hostiles . | . . . Parts Fried . | . . . Impact Corruptions . | . . . Robots Melted 1 | . . 1 Combat Hostiles 1 | . . 1 Parts Melted 2 | . . 2 Heat Transferred 1426 | . 225 1201 Parts Sabotaged . | . . . Parts Stolen . | . . . Parts Stripped . | . . . Power Chain Reactions . | . . . Missiles Intercepted . | . . . Alert | -11 -10 -9 ------- Run | Scr Mat Mat Peak Influence 207 | . 207 137 Initial . | . . . Average 53 | . 54 66 Maximum Alert Level 1 | . 1 . Low Security (%) 93 | 100 90 100 Level 1 6 | . 9 . Level 2 . | . . . Level 3 . | . . . Level 4 . | . . . Level 5 . | . . . High Security . | . . . Max Security . | . . . Squads Dispatched 1 | . 1 . Investigation . | . . . Extermination . | . . . Reinforcement 1 | . 1 . Assault . | . . . Garrison . | . . . Intercept . | . . . Searches Triggered . | . . . Construction Impeded . | . . . Haulers Reinforced . | . . . Active Scanning Responses . | . . . Cargo Convoy Interrupts . | . . . Stealth | -11 -10 -9 --------- Run | Scr Mat Mat Distress Signals 4 | . 3 1 Communications Jammed . | . . . Distress Signals . | . . . Times Spotted 27 | . 16 11 Peak Tracking Total 5 | . 5 5 Tactical Retreats 2 | . 1 1 Traps | -11 -10 -9 ------- Run | Scr Mat Mat Traps Triggered 1 | . 1 . Indirectly . | . . . Trap Hack Attempts . | . . . Triggered . | . . . Disarmed . | . . . Reprogrammed . | . . . Reused . | . . . Traps Extracted . | . . . Installed . | . . . Triggered . | . . . Machines | -11 -10 -9 ---------- Run | Scr Mat Mat Machines Disabled . | . . . Max in Single Turn . | . . . Machines Sabotaged . | . . . Garrisons Compromised . | . . . Overloaded Fab Kills . | . . . Hacking | -11 -10 -9 --------- Run | Scr Mat Mat Machines Accessed 3 | . 3 . Terminals 2 | . 2 . Fabricators . | . . . Repair Stations . | . . . Recycling Units 1 | . 1 . Scanalyzers . | . . . Garrison Access . | . . . Total Hacks 5 | . 5 . Successful 3 | . 3 . Failed 2 | . 2 . Catastrophic . | . . . Database Lockouts . | . . . Manual . | . . . Terminals 2 | . 2 . Fabricators . | . . . Repair Stations . | . . . Recycling Units 3 | . 3 . Scanalyzers . | . . . Garrison Access . | . . . Terminal Hacks 1 | . 1 . Branch Access Points 1 | . 1 . Fabricator Hacks . | . . . Repair Station Hacks . | . . . Recycling Unit Hacks 2 | . 2 . Recycle Component 1 | . 1 . Process 1 | . 1 . Scanalyzer . | . . . Garrison Access Hacks . | . . . Unauthorized Hacks . | . . . Terminals . | . . . Fabricators . | . . . Repair Stations . | . . . Recycling Units . | . . . Scanalyzers . | . . . Garrison Access . | . . . Data Cores Recovered . | . . . Used . | . . . Hacking Detections 1 | . 1 . Full Trace Events . | . . . Feedback Events . | . . . Feedback Blocked . | . . . Robot Schematics Acquired . | . . . Robots Built . | . . . Authchips . | . . . Time . | . . . Total Robot Build Rating . | . . . Part Schematics Acquired . | . . . Parts Built . | . . . Authchips . | . . . Time . | . . . Total Part Build Rating . | . . . Parts Repaired . | . . . Time . | . . . Parts Recycled 1 | . 1 . Recycled Matter 7 | . 7 . Retrieved Matter . | . . . Retrieved Components . | . . . Parts Scanalyzed . | . . . Part Schematics Acquired . | . . . Parts Damaged . | . . . Bothacking | -11 -10 -9 ------------ Run | Scr Mat Mat Used RIF Installer . | . . . Robots Hacked . | . . . Non-combat . | . . . Combat . | . . . Robot Hacks Applied . | . . . Relay Couplers Released . | . . . Fabnet Peak Effective % . | . . . Robots Rewired . | . . . Allies Hacked . | . . . Hacks Repelled . | . . . Allies | -11 -10 -9 -------- Run | Scr Mat Mat Total Allies . | . . . Largest Group . | . . . Highest-Rated Group . | . . . Highest-Rated Ally . | . . . Total Orders . | . . . Ally Attacks . | . . . Total Damage . | . . . Kills . | . . . Allies Corrupted . | . . . Allies Melted . | . . . Intel | -11 -10 -9 ------- Run | Scr Mat Mat Robot Analysis Total . | . . . Derelict Logs Recovered . | . . . Drone Launches . | . . . Drone Recoveries . | . . . Exploration | -11 -10 -9 ------------- Run | Scr Mat Mat Turns Passed 1188 | 86 842 260 Spaces Moved 521 | 59 395 67 Core 59 | 59 . . Treads 44 | . . 44 Legs 418 | . 395 23 Wheels . | . . . Hover . | . . . Flight . | . . . Fastest Speed 50 | 50 120 160 Average Speed 177 | 117 186 172 Slowest Speed 260 | 200 260 260 Overloaded Moves . | . . . Propulsion Burnouts . | . . . Robots Hopped . | . . . Cave-ins Triggered . | . . . Exploration Rate (%) 23 | 4 61 6 Regions Visited 2 Branch Regions . Pre-discovered Areas . | . . . Known Exits Taken . | . . . Unknown Exits Taken 2 | 1 1 . Scrap Searched . | . . . Spaces Dug . | . . . Terrain Destroyed 8 | . 4 4 Melee . | . . . Projectile 8 | . 4 4 AOE . | . . . Terrain Rammed . | . . . Walls Destroyed . | . . . Machines Disabled . | . . . Actions | -11 -10 -9 --------- Run | Scr Mat Mat Total 661 | 76 459 126 Wait 19 | . 14 5 Move 519 | 58 394 67 Hop . | . . . Pick Up 37 | 12 16 9 Fast Attach 2 | . 2 . Attach 20 | 6 5 9 Detach 3 | . 2 1 Swap 8 | . 5 3 Drop 4 | . 3 1 Fire 49 | . 18 31 Melee . | . . . Ram . | . . . Kick . | . . . Crush . | . . . Escape Stasis . | . . . Rewire . | . . . Trap . | . . . Miscellaneous . | . . . Route ------- -11/Scrapyard -10/Materials (discovered 4 exits: [*Mat x2] / *Min x2) -9/Materials History --------- Turn | Location | Event 6 | -11/Scrapyard | Discovered new exit (range 15) 87 | -11/Scrapyard | Entered Materials 234 | -10/Materials | Discovered new exit (range 16) 317 | -10/Materials | Build established: Mutant 580 | -10/Materials | Discovered new exit (range 15) 788 | -10/Materials | Discovered new exit (range 7) 802 | -10/Materials | Identified exit to Mines 929 | -10/Materials | Entered another Materials area 929 | -9/Materials | Evolved 2 slots: Power x1, Utility x1 1116 | -9/Materials | Lost 3 parts (2p1w) 1189 | -9/Materials | Self-destructed Last Messages --------------- 01113_ K-01 Serf collects debris. 01116_ Acquired Terrain Scanner. 01117_ Acquired 23 matter. 01118_ K-01 Serf collects debris. 01119_ Acquired 13 matter. 01122_ K-01 Serf collects debris. 01122_ Acquired 40 matter. 01125_ K-01 Serf collects debris. 01130_ Dropped Med. Storage Unit. 01132_ K-01 Serf collects debris. 01136_ Acquired Plasma Cutter. 01138_ K-01 Serf collects debris. 01143_ W-16 Scout suffers critical hit (Burn). 01144_ K-01 Serf collects debris. 01165_ Critical hit (Burn: +37). 01167_ Mining Laser destroyed. 01169_ Aluminum Leg destroyed. 01169_ Sensor Array destroyed. 01183_ Aluminum Leg destroyed. 01189_ Med. Laser destroyed. Map ----- +----------------------------------------------------+ | ???????????????????????????????????? | | ???????????????????????????????????? | | ???????????????????????????????????? | | ???????????????????????????????????? | | ???????????????????????????????????? | | ???????????????????????????????????? | | ???????????????????????????????????? | | ???????????????????????????????????? | | ???????????????????????????????????? | | ???????????????????????????????????? | | ???????????????????????????????????? | | ????????????????????#####??????????? | | ????????????????????# ########???? | | ????????????????????# # #???? | | ????????????????????# # #???? | | ????????????????????# + #???? | | ????????????????????# # #???? | | ????????????????????# # #???? | | ????????????????????# # #???? | | ????????????????????# ###########? | | ????????????????????# # #? | | ????????????????????# # #? | | ????????????????????# # #? | | ????????????????????# # #? | | ????????????????????# g #? | | ????????????????????# g@ #? | | ????????????????????### # #? | | ??????????????????????# # #? | | ????????????????????### ###########? | | ????????????????????# !# #?? | | ????????????????????# ![# """ #?? | | ????????????????????# + """ #?? | | ????????????????????# # """ #?? | | ????????????????????# # #?? | | ????????????????????## ## #?? | | ?????????????????????# #########?? | | ?????????????????????# #?????????? | | ?????????????????????# #?????????? | | ?????????????????????# #?????????? | | ?????????????????????# #?????????? | | ?????????????????????# #?????????? | | ????????????????????? ?????????? | | ????????????????????? ?????????? | | ????????????????????# ?????????? | | ????????????????????+ ?????????? | | ????????????????????# ??????????? | | ????????????????????? ??????????? | | ???????????????????????????????????? | | ???????????????????????????????????? | | ???????????????????????????????????? | +----------------------------------------------------+ Best States ------------- Heat Dissipation 38 Energy Generation 15 Energy Capacity 275 Matter Stores 300 Matter Capacity 450 Sight Range 16 Robot Scan Range 14 Terrain Scan Density 10 Evasion (%) 55 Recoil Reduction 2 Item Schematics ----------------- None Robot Schematics ------------------ None Fabricated ------------ Nothing Alien Tech Used ----------------- None Achievements -------------- It's Just You Challenges ------------ None Game ------ Seed ZioniteAssembledCore Manual? 0 Play Time 00:35:06 Cumulative 6.0 hours Start 2022.06.24 @ 00:16:39 End 2022.06.24 @ 12:06:07 Sessions 5 Manual Loads 0 Difficulty Rogue Special Mode None Game No. 8 Rogue 8 Adventurer 0 Explorer 0 Win Type - Total 0 Types 0/0/0/0/0/0/0/0/0 Lore% 1 Gallery% 7 Achievement% 7 Wizard Run 0 Options --------- ASCII 0 Keyboard 0 Movement Mouse Keybinds 0 Fullscreen 1 Font 24/Crisp Map View 64x52 Tactical HUD 1 Map Filters NONE Filters NONE Steam 1 RUN: ed836c75-f59d-4fb7-bed0-c10b23a1e336